bitfinex-derivatives/quotes_SOLF0:USTF0_20260208
["timestamp","ask_amount","ask_price","bid_price","bid_amount"]
[1770524166771,10.61812332,86.684,86.64,3.407708]
[1770524166971,9.12245783,86.683,86.64,3.407708]
[1770524167170,10.61812332,86.682,86.64,3.407708]
[1770524167375,9.13281019,86.681,86.64,3.407708]
[1770524167676,10.61812332,86.682,86.64,3.407708]
[1770524167970,10.61812332,86.68,86.64,3.407708]
[1770524168171,10.61812332,86.68,86.64,13.70300554]
[1770524168172,9.13256343,86.679,86.64,13.70300554]
[1770524168377,9.13256343,86.678,86.64,13.70300554]
[1770524168676,9.13256343,86.677,86.64,13.70300554]
[1770524168871,9.13256343,86.676,86.64,13.70300554]
[1770524169063,10.3882,86.704,86.574,34.61]
[1770524169064,10.61812332,86.669,86.59,10.29529754]
[1770524169272,10.61812332,86.649,86.591,10.29529754]
[1770524169468,10.61812332,86.647,86.591,10.29529754]
[1770524169772,10.61812332,86.645,86.591,10.29529754]
[1770524169975,9.1348422,86.644,86.61,3.407708]
[1770524170168,10.61812332,86.645,86.61,3.407708]
[1770524170469,9.12309466,86.644,86.603,10.29529754]
[1770524170673,10.61812332,86.642,86.603,10.29529754]
[1770524170974,10.61812332,86.639,86.584,10.29529754]
[1770524171175,10.61812332,86.637,86.584,10.29529754]
[1770524171377,9.32868447,86.636,86.584,10.29529754]
[1770524171571,19.94680779,86.635,86.584,10.29529754]
[1770524171775,9.32868447,86.634,86.584,10.29529754]
[1770524171973,10.61812332,86.635,86.584,10.29529754]
[1770524171974,9.32868447,86.633,86.584,10.29529754]
[1770524172175,10.61812332,86.635,86.584,10.29529754]
[1770524172475,9.32529444,86.634,86.584,10.29529754]
[1770524172668,10.61812332,86.635,86.584,10.29529754]
[1770524172974,9.95778926,86.65,86.584,10.29529754]
[1770524173175,9.95778926,86.648,86.584,10.29529754]
[1770524173375,9.32557321,86.647,86.584,10.29529754]
[1770524173673,9.95778926,86.619,86.501,9.66392057]
[1770524173882,9.95778926,86.617,86.521,9.66392057]
[1770524174070,21.16287074,86.669,86.46,9.13970732]
[1770524174071,9.32557321,86.616,86.56,9.13970732]
[1770524174271,9.95778926,86.632,86.561,9.66392057]
[1770524174580,9.95778926,86.63,86.561,9.66392057]
[1770524174882,19.26817121,86.629,86.561,9.66392057]
[1770524175080,9.31038195,86.628,86.561,9.66392057]
[1770524175267,14.10858049,86.669,86.561,9.66392057]
[1770524175268,9.95778926,86.626,86.561,9.66392057]
[1770524175471,9.95778926,86.624,86.561,9.66392057]
[1770524175773,9.95778926,86.622,86.561,9.66392057]
[1770524175973,9.31038195,86.621,86.561,9.66392057]
[1770524176276,9.95778926,86.619,86.561,9.66392057]
[1770524176982,9.95778926,86.632,86.561,9.66392057]
[1770524177479,9.29308193,86.631,86.561,9.66392057]
[1770524177779,9.29240872,86.63,86.561,9.66392057]
[1770524177978,9.95778926,86.628,86.561,9.66392057]
[1770524178176,9.95778926,86.626,86.561,9.66392057]
[1770524178586,9.28643265,86.625,86.561,9.66392057]
[1770524178782,9.95778926,86.623,86.561,9.66392057]
[1770524181581,9.95778926,86.621,86.546,9.66392057]
[1770524181779,9.95778926,86.615,86.546,9.66392057]
[1770524182281,9.95778926,86.589,86.518,9.66392057]
[1770524185179,9.95778926,86.589,86.521,9.66392057]
[1770524186077,9.95778926,86.589,86.525,9.66392057]
[1770524186882,9.95778926,86.606,86.531,9.66392057]
[1770524188579,9.95778926,86.606,86.534,10.4085]
[1770524188880,9.95778926,86.606,86.535,9.66392057]
[1770524191080,9.95778926,86.606,86.54,9.66392057]
[1770524192779,9.95778926,86.606,86.543,9.66392057]
[1770524193383,9.95778926,86.606,86.53,9.13970732]
[1770524193384,9.95778926,86.606,86.546,9.66392057]
[1770524193588,9.95778926,86.622,86.546,9.66392057]
[1770524194887,9.95778926,86.622,86.559,9.66392057]
[1770524195386,9.95778926,86.622,86.521,34.61]
[1770524195387,9.95778926,86.622,86.561,9.66392057]
[1770524196786,9.95778926,86.622,86.562,9.71217721]
[1770524196988,10.51393878,86.635,86.562,9.71217721]
[1770524197284,10.51393878,86.635,86.577,9.71217721]
[1770524199686,10.51393878,86.635,86.578,10.4033]
[1770524199879,10.51393878,86.635,86.532,34.61]
[1770524199880,10.51393878,86.635,86.581,9.71217721]
[1770524200281,10.3926,86.668,86.587,9.71217721]
[1770524200587,10.51393878,86.649,86.587,9.71217721]
[1770524200793,10.51393878,86.649,86.601,9.71217721]
[1770524201388,10.51393878,86.662,86.602,9.71217721]
[1770524201783,10.51393878,86.662,86.575,9.71217721]
[1770524201990,10.51393878,86.653,86.575,9.71217721]
[1770524203899,10.51393878,86.649,86.575,9.71217721]
[1770524205491,10.51393878,86.644,86.575,9.71217721]
[1770524206799,10.51393878,86.642,86.575,9.71217721]
[1770524206994,10.51393878,86.642,86.561,9.71217721]
[1770524207200,161.6359,86.682,86.561,9.71217721]
[1770524207201,10.51393878,86.639,86.561,9.71217721]
[1770524207390,9.14502059,86.64,86.561,9.71217721]
[1770524207391,10.51393878,86.627,86.561,9.71217721]
[1770524207590,10.51393878,86.625,86.561,9.71217721]
[1770524208296,10.51393878,86.618,86.561,9.71217721]
[1770524208999,10.3987,86.617,86.561,9.71217721]
[1770524209195,10.51393878,86.615,86.537,9.71217721]
[1770524210200,8.96070577,86.614,86.537,9.71217721]
[1770524210396,10.58120565,86.633,86.537,9.71217721]
[1770524210397,10.51393878,86.612,86.537,9.71217721]
[1770524210603,10.51393878,86.611,86.537,9.71217721]
[1770524211702,10.58120565,86.632,86.537,9.71217721]
[1770524211703,10.51393878,86.608,86.537,9.71217721]
[1770524213702,10.51393878,86.608,86.551,9.71217721]
[1770524214106,10.51393878,86.633,86.551,9.71217721]
[1770524214404,10.51393878,86.631,86.551,9.71217721]
[1770524214600,10.51393878,86.629,86.551,9.71217721]
[1770524214804,10.51393878,86.624,86.551,9.71217721]
[1770524215005,10.51393878,86.622,86.551,9.71217721]
[1770524215204,10.51393878,86.62,86.551,9.71217721]
[1770524217908,10.51393878,86.62,86.553,9.71217721]
[1770524219012,10.51393878,86.62,86.559,9.71217721]
[1770524219810,10.51393878,86.62,86.561,9.71217721]
[1770524220605,10.51393878,86.62,86.564,9.71217721]
[1770524220802,9.14502059,86.64,86.561,34.61]
[1770524221106,10.51393878,86.619,86.553,9.71217721]
[1770524221301,10.51393878,86.617,86.553,9.71217721]
[1770524221503,8.98005275,86.616,86.553,9.71217721]
[1770524221810,10.51393878,86.614,86.553,9.71217721]
[1770524222008,10.51393878,86.612,86.553,9.71217721]
[1770524222209,10.51393878,86.61,86.553,9.71217721]
[1770524222414,10.51393878,86.608,86.553,9.71217721]
[1770524222607,10.51393878,86.606,86.553,9.71217721]
[1770524225314,10.51393878,86.639,86.553,9.71217721]
[1770524225615,10.51393878,86.637,86.553,9.71217721]
[1770524225815,9.70616902,86.635,86.553,9.71217721]
[1770524226013,9.70616902,86.633,86.553,9.71217721]
[1770524226208,9.70616902,86.629,86.553,9.71217721]
[1770524226412,8.98174234,86.628,86.553,9.71217721]
[1770524226611,9.70616902,86.626,86.553,9.71217721]
[1770524226814,19.72622624,86.64,86.553,9.71217721]
[1770524226815,9.70616902,86.622,86.553,9.71217721]
[1770524227113,9.70616902,86.62,86.553,9.71217721]
[1770524227315,9.70616902,86.618,86.553,9.71217721]
[1770524227514,9.14502059,86.64,86.52,9.14502059]
[1770524227515,9.70616902,86.614,86.539,9.76477173]
[1770524227719,9.70616902,86.612,86.539,9.76477173]
[1770524227903,9.70616902,86.61,86.539,9.76477173]
[1770524229211,8.98726529,86.609,86.539,9.76477173]
[1770524229412,9.70616902,86.607,86.542,9.76477173]
[1770524234716,9.70616902,86.607,86.545,9.35386794]
[1770524235624,9.65801046,86.599,86.545,9.35386794]
[1770524239730,9.65801046,86.599,86.55,3.41525362]
[1770524240233,9.65801046,86.599,86.551,9.35386794]
[1770524241430,9.65801046,86.599,86.56,3.41525362]
[1770524242031,9.65801046,86.599,86.551,9.35386794]
[1770524242632,3.41525362,86.61,86.555,9.35386794]
[1770524242834,9.65801046,86.611,86.561,9.35386794]
[1770524243632,9.65801046,86.611,86.504,161.9667]
[1770524243633,9.65801046,86.623,86.581,9.35386794]
[1770524246430,9.65801046,86.623,86.59,3.41525362]
[1770524249834,9.65801046,86.639,86.6,3.41525362]
[1770524250035,9.03696895,86.638,86.6,3.41525362]
[1770524250231,9.03696895,86.637,86.6,3.41525362]
[1770524250436,9.03696895,86.636,86.591,9.35386794]
[1770524250731,9.03696895,86.635,86.591,9.35386794]
[1770524250936,9.03696895,86.634,86.591,9.35386794]
[1770524251240,9.65801046,86.639,86.591,9.35386794]
[1770524251440,18.69490404,86.638,86.591,9.35386794]
[1770524251742,9.03689358,86.637,86.591,9.35386794]
[1770524252038,9.65801046,86.638,86.591,9.35386794]
[1770524252039,9.03689358,86.636,86.591,9.35386794]
[1770524252236,9.65801046,86.638,86.591,9.35386794]
[1770524252439,9.03464013,86.637,86.591,9.35386794]
[1770524252638,9.65801046,86.635,86.591,9.35386794]
[1770524252941,9.65801046,86.655,86.61,3.41525362]
[1770524253137,9.65801046,86.655,86.55,161.8809]
[1770524253138,9.65801046,86.665,86.62,3.41525362]
[1770524253439,9.65801046,86.663,86.63,3.41525362]
[1770524254529,9.65801046,86.689,86.63,3.41525362]
[1770524254729,9.65801046,86.687,86.63,3.41525362]
[1770524254933,9.65801046,86.685,86.63,3.41525362]
[1770524255237,9.65801046,86.683,86.63,3.41525362]
[1770524255439,9.65801046,86.681,86.64,3.4080103]
[1770524256236,9.65801046,86.681,86.643,10.3955]
[1770524256440,3.4080103,86.71,86.651,10.1017361]
[1770524256639,9.013845,86.709,86.651,10.1017361]
[1770524256842,3.4080103,86.7,86.651,10.1017361]
[1770524257844,3.4080103,86.71,86.651,10.1017361]
[1770524258136,3.4080103,86.7,86.651,10.1017361]
[1770524258336,10.08582779,86.699,86.651,10.1017361]
[1770524259142,10.08582779,86.699,86.66,3.4080103]
[1770524260843,10.08582779,86.699,86.652,10.3943]
[1770524260844,10.08582779,86.699,86.653,10.1017361]
[1770524261045,10.08582779,86.699,86.66,3.4080103]
[1770524261536,10.08582779,86.699,86.653,10.1017361]
[1770524261537,10.08582779,86.699,86.64,10.1017361]
[1770524261844,10.08582779,86.689,86.641,10.1017361]
[1770524262441,10.08582779,86.689,86.65,3.4080103]
[1770524265248,10.08582779,86.709,86.661,10.1017361]
[1770524267248,10.08582779,86.709,86.65,3.4080103]
[1770524267546,10.08582779,86.699,86.65,3.4080103]
[1770524267748,10.08582779,86.699,86.65,13.5097464]
[1770524267947,10.08582779,86.699,86.651,10.1017361]
[1770524273254,10.08582779,86.699,86.66,3.4080103]
[1770524274459,10.08582779,86.699,86.661,10.1017361]
[1770524276651,10.08582779,86.699,86.66,3.4080103]
[1770524277051,10.08582779,86.699,86.638,10.3961]
[1770524277052,10.08582779,86.699,86.651,10.1017361]
[1770524282456,10.08582779,86.699,86.587,161.8116]
[1770524282457,10.08582779,86.719,86.681,10.1017361]
[1770524282654,10.08582779,86.739,86.691,10.1017361]
[1770524282954,10.08582779,86.759,86.711,10.1017361]
[1770524283155,10.08582779,86.759,86.72,3.4080103]
[1770524283551,10.08582779,86.779,86.73,3.4080103]
[1770524283747,10.08582779,86.799,86.741,10.1017361]
[1770524284059,10.08582779,86.799,86.75,3.4080103]
[1770524284858,10.08582779,86.799,86.741,10.1017361]
[1770524285160,3.4080103,86.79,86.741,10.1017361]
[1770524285959,3.4080103,86.78,86.741,10.1017361]
[1770524286460,9.57836767,86.789,86.741,10.1017361]
[1770524288258,10.58120565,86.843,86.741,10.1017361]
[1770524288259,9.57836767,86.802,86.75,3.4080103]
[1770524288455,9.57836767,86.802,86.76,13.41296238]
[1770524289258,9.57836767,86.802,86.761,10.00495208]
[1770524294465,9.3720639,86.859,86.764,10.05346148]
[1770524294662,9.3720639,86.857,86.781,10.05346148]
[1770524295464,9.3720639,86.857,86.79,10.05346148]
[1770524296765,9.3720639,86.857,86.798,10.05346148]
[1770524297655,9.3720639,86.857,86.78,9.10219843]
[1770524297656,9.3720639,86.857,86.803,10.05346148]
[1770524298262,9.3720639,86.857,86.806,10.376]
[1770524298457,9.3720639,86.857,86.79,10.05346148]
[1770524298860,9.3720639,86.857,86.807,10.3758]
[1770524299666,6.39e-05,86.857,86.818,10.3745]
[1770524302166,6.39e-05,86.857,86.808,10.05346148]
[1770524303868,6.39e-05,86.857,86.809,10.3756]
[1770524304067,6.39e-05,86.857,86.81,10.05346148]
[1770524305859,6.39e-05,86.857,86.814,10.375]
[1770524306565,6.39e-05,86.857,86.81,10.05346148]
[1770524307963,3.40627713,86.874,86.81,10.05346148]
[1770524309364,3.46985544,86.869,86.811,10.05346148]
[1770524310677,3.46985544,86.869,86.821,10.05346148]
[1770524312973,3.67242698,86.882,86.84,3.39426842]
[1770524313171,3.67242698,86.882,86.841,10.05346148]
[1770524313578,3.69815787,86.899,86.841,10.05346148]
[1770524314776,3.72737942,86.889,86.841,10.05346148]
[1770524316277,3.72737942,86.889,86.832,10.3728]
[1770524316278,3.72737942,86.889,86.851,9.57048393]
[1770524316477,3.39242664,86.91,86.851,9.57048393]
[1770524316676,3.81351348,86.909,86.86,3.39242664]
[1770524316980,3.81351348,86.909,86.861,9.57048393]
[1770524317175,3.81351348,86.909,86.87,12.96291057]
[1770524317379,3.8413994,86.926,86.88,3.39242664]
[1770524318076,3.8413994,86.926,86.89,3.39242664]
[1770524318872,3.92096788,86.941,86.9,3.39242664]
[1770524319784,3.89728894,86.929,86.873,9.57048393]
[1770524319979,10.3587,86.951,86.873,9.57048393]
[1770524319980,3.89728894,86.919,86.873,9.57048393]
[1770524322673,7.20941125,86.91,86.86,12.96291057]
[1770524322874,3.39242664,86.9,86.86,9.57048393]
[1770524326781,7.40503852,86.92,86.87,12.96291057]
[1770524326981,4.01261188,86.919,86.87,9.57048393]
[1770524327189,3.39242664,86.91,86.87,9.57048393]
[1770524327890,4.01261188,86.919,86.87,9.57048393]
[1770524328082,4.01261188,86.919,86.871,9.57048393]
[1770524332890,4.01261188,86.919,86.88,3.39242664]
[1770524333089,4.01261188,86.919,86.881,9.57048393]
[1770524333781,13.75362664,86.93,86.881,9.57048393]
[1770524335393,18.40124326,86.93,86.881,9.57048393]
[1770524335991,4.70504547,86.929,86.881,9.57048393]
[1770524337389,8.14349203,86.92,86.881,9.57048393]
[1770524338397,4.73592024,86.919,86.881,9.57048393]
[1770524339399,4.75795416,86.899,86.851,9.57048393]
[1770524341689,3.39242664,86.9,86.851,9.57048393]
[1770524341898,4.79091735,86.927,86.881,9.57048393]
[1770524342692,3.39242664,86.95,86.891,9.57048393]
[1770524342897,4.81219734,86.946,86.891,9.57048393]
[1770524343201,4.81219734,86.939,86.891,9.57048393]
[1770524343396,10.45601776,86.958,86.891,9.57048393]
[1770524343397,3.39242664,86.93,86.891,9.57048393]
[1770524345605,4.83380693,86.937,86.891,9.57048393]
[1770524345810,8.94415999,86.936,86.891,9.57048393]
[1770524346002,8.94415999,86.935,86.891,9.57048393]
[1770524346203,8.94415999,86.934,86.891,9.57048393]
[1770524346405,8.94415999,86.933,86.891,9.57048393]
[1770524346604,4.83380693,86.937,86.891,9.57048393]
[1770524346804,8.94562022,86.936,86.891,9.57048393]
[1770524347107,8.94562022,86.935,86.891,9.57048393]
[1770524347306,8.94562022,86.934,86.891,9.57048393]
[1770524347607,8.94562022,86.933,86.891,9.57048393]
[1770524347907,8.94562022,86.932,86.891,9.57048393]
[1770524348207,3.39242664,86.93,86.891,9.57048393]
[1770524348406,8.27823071,86.93,86.891,9.57048393]
[1770524349110,8.9495924,86.929,86.891,9.57048393]
[1770524349311,4.90513461,86.919,86.877,9.90004642]
[1770524349498,4.90513461,86.919,86.88,3.39242664]
[1770524349704,3.39242664,86.93,86.881,9.90004642]
[1770524349903,8.95160144,86.929,86.881,9.90004642]
[1770524350108,8.95160144,86.928,86.881,9.90004642]
[1770524350308,8.95160144,86.927,86.881,9.90004642]
[1770524350509,8.95160144,86.926,86.881,9.90004642]
[1770524350707,8.95160144,86.925,86.881,9.90004642]
[1770524351009,8.95539091,86.924,86.881,9.90004642]
[1770524351206,8.30497535,86.93,86.881,9.90004642]
[1770524351402,8.95983152,86.929,86.881,9.90004642]
[1770524351603,8.95983152,86.929,86.818,34.61]
[1770524351604,4.95113803,86.942,86.9,3.39242664]
[1770524351806,8.96384003,86.941,86.901,9.90004642]
[1770524352006,4.95113803,86.942,86.901,9.90004642]
[1770524352205,8.96435569,86.941,86.901,9.90004642]
[1770524352507,12.35678233,86.94,86.901,9.90004642]
[1770524352708,8.96435569,86.939,86.901,9.90004642]
[1770524352908,8.96435569,86.938,86.901,9.90004642]
[1770524353109,3.39242664,86.94,86.901,9.90004642]
[1770524353309,4.95113803,86.942,86.901,9.90004642]
[1770524353310,8.96708322,86.939,86.901,9.90004642]
[1770524353511,8.96708322,86.938,86.901,9.90004642]
[1770524353715,8.96708322,86.937,86.901,9.90004642]
[1770524353903,4.95113803,86.942,86.901,9.90004642]
[1770524354101,8.97017486,86.941,86.901,9.90004642]
[1770524354303,4.95113803,86.942,86.901,9.90004642]
[1770524354304,8.97017486,86.94,86.901,9.90004642]
[1770524354612,8.97017486,86.939,86.901,9.90004642]
[1770524354820,8.97017486,86.938,86.901,9.90004642]
[1770524355111,8.97017486,86.937,86.901,9.90004642]
[1770524355313,8.97923035,86.936,86.901,9.90004642]
[1770524355503,8.97923035,86.935,86.901,9.90004642]
[1770524355703,5.07623132,86.958,86.901,9.90004642]
[1770524355905,10.3578,86.959,86.901,9.90004642]
[1770524355906,5.07623132,86.956,86.901,9.90004642]
[1770524356106,5.07623132,86.954,86.901,9.90004642]
[1770524356307,13.75122664,86.95,86.901,9.90004642]
[1770524356514,14.07393322,86.949,86.901,9.90004642]
[1770524356709,8.97952215,86.948,86.901,9.90004642]
[1770524356908,5.09389713,86.945,86.901,9.90004642]
[1770524357109,5.09389713,86.939,86.901,9.90004642]
[1770524357311,8.97952215,86.938,86.901,9.90004642]
[1770524357509,8.97952215,86.937,86.901,9.90004642]
[1770524357712,8.97952215,86.936,86.901,9.90004642]
[1770524357912,8.97952215,86.935,86.901,9.90004642]
[1770524358109,8.97952215,86.934,86.901,9.90004642]
[1770524358418,8.97952215,86.933,86.901,9.90004642]
[1770524358721,8.97952215,86.932,86.901,9.90004642]
[1770524359020,8.97952215,86.931,86.901,9.90004642]
[1770524359218,8.97952215,86.93,86.901,9.90004642]
[1770524359517,8.97952215,86.929,86.901,9.90004642]
[1770524359717,8.97952215,86.928,86.901,9.90004642]
[1770524360018,5.09389713,86.939,86.901,9.90004642]
[1770524360218,9.0004494,86.938,86.901,9.90004642]
[1770524360408,9.0004494,86.937,86.901,9.90004642]
[1770524360607,9.0004494,86.936,86.901,9.90004642]
[1770524360821,9.0004494,86.935,86.901,9.90004642]
[1770524361020,9.0004494,86.934,86.901,9.90004642]
[1770524361216,9.0004494,86.933,86.881,10.28386211]
[1770524361521,14.28897279,86.932,86.881,10.28386211]
[1770524361813,5.24959378,86.929,86.881,10.28386211]
[1770524362019,3.39242664,86.93,86.881,10.28386211]
[1770524362020,14.25004318,86.928,86.881,10.28386211]
[1770524362320,9.0004494,86.927,86.881,10.28386211]
[1770524362517,9.0004494,86.926,86.881,10.28386211]
[1770524362717,9.0004494,86.925,86.881,10.28386211]
[1770524362917,9.0004494,86.924,86.881,10.28386211]
[1770524363118,9.0004494,86.923,86.881,10.28386211]
[1770524363318,9.0004494,86.922,86.881,10.28386211]
[1770524363518,5.24959378,86.928,86.881,10.28386211]
[1770524363519,9.0004494,86.921,86.881,10.28386211]
[1770524363718,9.0004494,86.92,86.881,10.28386211]
[1770524363919,5.24959378,86.928,86.881,10.28386211]
[1770524364118,9.01084979,86.927,86.881,10.28386211]
[1770524364324,9.01084979,86.926,86.881,10.28386211]
[1770524364521,5.42023513,86.924,86.881,10.28386211]
[1770524364714,9.01084979,86.923,86.881,10.28386211]
[1770524364915,9.01084979,86.922,86.881,10.28386211]
[1770524365118,9.01084979,86.921,86.881,10.28386211]
[1770524365317,9.01084979,86.92,86.881,10.28386211]
[1770524365515,9.01084979,86.919,86.881,10.28386211]
[1770524365826,5.42023513,86.924,86.881,10.28386211]
[1770524366029,9.0103876,86.923,86.881,10.28386211]
[1770524366222,9.0103876,86.922,86.881,10.28386211]
[1770524366431,9.0103876,86.921,86.881,10.28386211]
[1770524366731,5.45016674,86.938,86.891,10.28386211]
[1770524367026,9.0084289,86.937,86.891,10.28386211]
[1770524367226,9.0084289,86.936,86.891,10.28386211]
[1770524367424,9.0084289,86.935,86.891,10.28386211]
[1770524367623,9.0084289,86.934,86.891,10.28386211]
[1770524367824,5.45016674,86.938,86.891,10.28386211]
[1770524368028,9.00811335,86.937,86.891,10.28386211]
[1770524368228,9.00811335,86.936,86.891,10.28386211]
[1770524368424,9.00811335,86.935,86.891,10.28386211]
[1770524368629,9.00811335,86.934,86.891,10.28386211]
[1770524368829,5.45016674,86.938,86.891,10.28386211]
[1770524369032,9.00937392,86.937,86.891,10.28386211]
[1770524369227,3.39242664,86.95,86.891,10.28386211]
[1770524369228,9.00937392,86.936,86.891,10.28386211]
[1770524369529,5.4744625,86.949,86.901,10.28386211]
[1770524369737,14.54182263,86.948,86.901,10.28386211]
[1770524369938,9.01088222,86.947,86.901,10.28386211]
[1770524370128,9.01088222,86.946,86.901,10.28386211]
[1770524370325,9.01088222,86.945,86.91,3.39242664]
[1770524370532,9.01088222,86.944,86.911,10.28386211]
[1770524370732,9.01088222,86.943,86.911,10.28386211]
[1770524370931,5.54612685,86.959,86.911,10.28386211]
[1770524371235,5.54612685,86.949,86.911,10.28386211]
[1770524371438,14.5756686,86.948,86.911,10.28386211]
[1770524371636,14.60527761,86.947,86.911,10.28386211]
[1770524371836,9.01425446,86.946,86.911,10.28386211]
[1770524372137,9.01425446,86.945,86.911,10.28386211]
[1770524372332,9.01425446,86.944,86.911,10.28386211]
[1770524372637,9.01425446,86.943,86.911,10.28386211]
[1770524372937,5.60613485,86.959,86.911,10.28386211]
[1770524373137,9.01502431,86.958,86.911,10.28386211]
[1770524373331,9.01502431,86.957,86.911,10.28386211]
[1770524373635,9.01502431,86.956,86.921,10.28386211]
[1770524373839,9.01502431,86.955,86.921,10.28386211]
[1770524374138,9.01502431,86.954,86.921,10.28386211]
[1770524374330,9.01502431,86.953,86.921,10.28386211]
[1770524374527,9.01502431,86.952,86.921,10.28386211]
[1770524374728,9.01502431,86.951,86.921,10.28386211]
[1770524374931,9.01502431,86.95,86.921,10.28386211]
[1770524375233,5.68647171,86.969,86.921,10.28386211]
[1770524375438,3.39242664,86.97,86.921,10.28386211]
[1770524375439,14.71152416,86.968,86.921,10.28386211]
[1770524375634,9.01045551,86.967,86.921,10.28386211]
[1770524375838,9.01045551,86.966,86.921,10.28386211]
[1770524376040,9.01045551,86.965,86.921,10.28386211]
[1770524376235,9.01045551,86.964,86.921,10.28386211]
[1770524376536,9.01045551,86.963,86.921,10.28386211]
[1770524376737,9.01045551,86.962,86.921,10.28386211]
[1770524376938,9.01045551,86.961,86.921,10.28386211]
[1770524377141,9.01045551,86.96,86.921,10.28386211]
[1770524377335,9.01045551,86.959,86.921,10.28386211]
[1770524377536,9.01045551,86.958,86.921,10.28386211]
[1770524377739,9.01045551,86.957,86.921,10.28386211]
[1770524377937,9.01045551,86.956,86.921,10.28386211]
[1770524378131,5.70106865,86.968,86.921,10.28386211]
[1770524378335,9.00557949,86.967,86.921,10.28386211]
[1770524378539,9.00557949,86.966,86.921,10.28386211]
[1770524378833,9.00557949,86.965,86.921,10.28386211]
[1770524379034,9.00557949,86.964,86.921,10.28386211]
[1770524379233,9.00557949,86.963,86.921,10.28386211]
[1770524379444,9.00557949,86.962,86.921,10.28386211]
[1770524379634,9.00557949,86.961,86.921,10.28386211]
[1770524379838,9.00557949,86.96,86.921,10.28386211]
[1770524380039,9.00557949,86.959,86.921,10.28386211]
[1770524380240,5.70106865,86.968,86.924,10.87928157]
[1770524380545,15.48601689,86.967,86.924,10.87928157]
[1770524380742,8.99979235,86.966,86.924,10.87928157]
[1770524380942,8.99979235,86.965,86.924,10.87928157]
[1770524381141,8.99979235,86.964,86.924,10.87928157]
[1770524381336,8.99979235,86.963,86.924,10.87928157]
[1770524381537,8.99979235,86.962,86.924,10.87928157]
[1770524381742,8.99979235,86.961,86.924,10.87928157]
[1770524381944,6.48622454,86.967,86.924,10.87928157]
[1770524382243,8.97638075,86.966,86.924,10.87928157]
[1770524382448,8.97638075,86.965,86.924,10.87928157]
[1770524382738,8.97638075,86.964,86.924,10.87928157]
[1770524382939,8.97638075,86.963,86.924,10.87928157]
[1770524383147,8.97638075,86.962,86.924,10.87928157]
[1770524383439,6.48622454,86.967,86.924,10.87928157]
[1770524383739,8.97371597,86.966,86.924,10.87928157]
[1770524383941,8.97371597,86.965,86.924,10.87928157]
[1770524384142,8.97371597,86.964,86.924,10.87928157]
[1770524384341,15.17022706,86.963,86.924,10.87928157]
[1770524384544,8.97371597,86.962,86.924,10.87928157]
[1770524384741,6.19651109,86.963,86.924,10.87928157]
[1770524384943,8.97344035,86.962,86.924,10.87928157]
[1770524385243,6.19651109,86.963,86.924,10.87928157]
[1770524385634,3.38620862,86.97,86.924,10.87928157]
[1770524385841,8.97252703,86.969,86.924,10.87928157]
[1770524386036,8.97252703,86.968,86.924,10.87928157]
[1770524386346,8.97252703,86.967,86.924,10.87928157]
[1770524386546,8.97252703,86.966,86.924,10.87928157]
[1770524386748,8.97252703,86.965,86.924,10.87928157]
[1770524386942,8.97252703,86.964,86.924,10.87928157]
[1770524387245,8.97252703,86.963,86.924,10.87928157]
[1770524387443,8.97348301,86.962,86.924,10.87928157]
[1770524387744,6.31622354,86.968,86.924,10.87928157]
[1770524387945,8.97439632,86.967,86.924,10.87928157]
[1770524388143,8.97439632,86.966,86.924,10.87928157]
[1770524388343,8.97439632,86.965,86.924,10.87928157]
[1770524388545,8.97439632,86.964,86.924,10.87928157]
[1770524388744,8.97439632,86.963,86.924,10.87928157]
[1770524388946,6.31622354,86.968,86.924,10.87928157]
[1770524389145,8.9735684,86.967,86.924,10.87928157]
[1770524389345,8.9735684,86.966,86.924,10.87928157]
[1770524389646,8.9735684,86.965,86.924,10.87928157]
[1770524389845,8.9735684,86.964,86.924,10.87928157]
[1770524390040,8.9735684,86.963,86.924,10.87928157]
[1770524390242,6.31622354,86.968,86.924,10.87928157]
[1770524390448,8.97297575,86.967,86.924,10.87928157]
[1770524390647,8.97297575,86.966,86.924,10.87928157]
[1770524390848,8.97297575,86.965,86.924,10.87928157]
[1770524391142,8.97297575,86.964,86.924,10.87928157]
[1770524391349,6.31622354,86.968,86.924,10.87928157]
[1770524391547,8.97269524,86.967,86.924,10.87928157]
[1770524391749,8.97269524,86.966,86.924,10.87928157]
[1770524392047,6.31622354,86.968,86.924,10.87928157]
[1770524392048,8.97269524,86.965,86.924,10.87928157]
[1770524392245,6.411101,86.963,86.924,10.87928157]
[1770524392451,8.97269524,86.962,86.924,10.87928157]
[1770524392646,8.97269524,86.961,86.924,10.87928157]
[1770524392850,8.97269524,86.96,86.924,10.87928157]
[1770524393048,6.411101,86.963,86.924,10.87928157]
[1770524393245,6.42290614,86.961,86.924,10.87928157]
[1770524393445,8.96853105,86.962,86.924,10.87928157]
[1770524393446,6.42290614,86.959,86.924,10.87928157]
[1770524394446,3.38620862,86.97,86.924,10.87928157]
[1770524394649,8.9681607,86.969,86.924,10.87928157]
[1770524394842,8.9681607,86.968,86.924,10.87928157]
[1770524395041,6.41907427,86.971,86.924,10.87928157]
[1770524395042,8.9681607,86.967,86.924,10.87928157]
[1770524395247,6.41907427,86.971,86.931,10.87928157]